[Event "Titled Tuesday Blitz January 31 Early 2023"]
[White "Kravtsiv, Martyn"]
[Black "Nakamura, Hikaru"]
[WhiteFideId "14113147"]
[BlackFideId "2016192"]
[WhiteElo "2598"]
[BlackElo "2775"]
[Result "0-1"]
[Round "05"]
[TimeControl "180+2"]
[Date "2023.01.31"]
[WhiteClock "0:00:02"]
[BlackClock "0:00:04"]

1. e4 {[%clk 0:03:00]}  g6 {[%clk 0:02:57]} 2. d4 {[%clk 0:03:00]}  Bg7 {[%clk 0:02:57]} 3. Nc3 {[%clk 0:03:00]}  a6 {[%clk 0:02:57]} 4. f4 {[%clk 0:03:00]}  b5 {[%clk 0:02:57]} 5. Nf3 {[%clk 0:03:00]}  Bb7 {[%clk 0:02:57]} 6. Bd3 {[%clk 0:03:00]}  d6 {[%clk 0:02:58]} 7. a4 {[%clk 0:02:57]}  b4 {[%clk 0:02:57]} 8. Ne2 {[%clk 0:02:58]}  Nd7 {[%clk 0:02:56]} 9. O-O {[%clk 0:02:57]}  c5 {[%clk 0:02:56]} 10. c3 {[%clk 0:02:57]}  Ngf6 {[%clk 0:02:56]} 11. e5 {[%clk 0:02:54]}  Nd5 {[%clk 0:02:57]} 12. Ng5 {[%clk 0:02:38]}  h6 {[%clk 0:02:28]} 13. Ne4 {[%clk 0:02:38]}  bxc3 {[%clk 0:02:23]} 14. bxc3 {[%clk 0:02:36]}  cxd4 {[%clk 0:02:23]} 15. cxd4 {[%clk 0:02:36]}  Nb4 {[%clk 0:02:23]} 16. exd6 {[%clk 0:02:17]}  O-O {[%clk 0:02:17]} 17. Ba3 {[%clk 0:02:15]}  a5 {[%clk 0:02:16]} 18. Bxb4 {[%clk 0:02:09]}  axb4 {[%clk 0:02:16]} 19. f5 {[%clk 0:02:08]}  gxf5 {[%clk 0:02:01]} 20. Rxf5 {[%clk 0:02:07]}  e6 {[%clk 0:02:01]} 21. Rb5 {[%clk 0:02:04]}  Bxe4 {[%clk 0:01:52]} 22. Bxe4 {[%clk 0:02:04]}  Ra6 {[%clk 0:01:53]} 23. Qd2 {[%clk 0:01:57]}  Qh4 {[%clk 0:01:43]} 24. Bf3 {[%clk 0:01:31]}  Rxd6 {[%clk 0:01:43]} 25. Rxb4 {[%clk 0:01:32]}  Rd8 {[%clk 0:01:26]} 26. a5 {[%clk 0:01:20]}  Nc5 {[%clk 0:01:26]} 27. Rd1 {[%clk 0:01:06]}  Na6 {[%clk 0:01:24]} 28. Rc4 {[%clk 0:01:00]}  e5 {[%clk 0:01:23]} 29. Qd3 {[%clk 0:00:47]}  exd4 {[%clk 0:01:20]} 30. Ng3 {[%clk 0:00:45]}  Be5 {[%clk 0:01:19]} 31. Be4 {[%clk 0:00:23]}  Rf6 {[%clk 0:01:11]} 32. Rb1 {[%clk 0:00:19]}  Re8 {[%clk 0:01:10]} 33. Rc6 {[%clk 0:00:19]}  Nc7 {[%clk 0:00:40]} 34. Rxf6 {[%clk 0:00:17]}  Qxf6 {[%clk 0:00:41]} 35. Nf5 {[%clk 0:00:17]}  Ne6 {[%clk 0:00:42]} 36. Qb5 {[%clk 0:00:13]}  Rb8 {[%clk 0:00:36]} 37. Qf1 {[%clk 0:00:08]}  Rxb1 {[%clk 0:00:32]} 38. Qxb1 {[%clk 0:00:09]}  Nc5 {[%clk 0:00:32]} 39. g3 {[%clk 0:00:08]}  Qd8 {[%clk 0:00:24]} 40. Bd3 {[%clk 0:00:07]}  Qxa5 {[%clk 0:00:23]} 41. Nxh6+ {[%clk 0:00:07]}  Kf8 {[%clk 0:00:23]} 42. Ng4 {[%clk 0:00:08]}  Bd6 {[%clk 0:00:20]} 43. Nf2 {[%clk 0:00:08]}  Qd2 {[%clk 0:00:19]} 44. Qc2 {[%clk 0:00:07]}  Qe3 {[%clk 0:00:19]} 45. Kg2 {[%clk 0:00:07]}  Be7 {[%clk 0:00:18]} 46. Qe2 {[%clk 0:00:07]}  Bg5 {[%clk 0:00:14]} 47. Bc4 {[%clk 0:00:07]}  Qc3 {[%clk 0:00:13]} 48. Bd3 {[%clk 0:00:06]}  Qa3 {[%clk 0:00:11]} 49. Bf5 {[%clk 0:00:07]}  Be3 {[%clk 0:00:11]} 50. Nd3 {[%clk 0:00:07]}  Nb3 {[%clk 0:00:11]} 51. Kh3 {[%clk 0:00:06]}  Qa6 {[%clk 0:00:10]} 52. Qh5 {[%clk 0:00:06]}  Qf6 {[%clk 0:00:10]} 53. Qg4 {[%clk 0:00:05]}  Nd2 {[%clk 0:00:09]} 54. Kg2 {[%clk 0:00:04]}  Qc6+ {[%clk 0:00:09]} 55. Kh3 {[%clk 0:00:05]}  Nf3 {[%clk 0:00:10]} 56. Qh5 {[%clk 0:00:04]}  Ng1+ {[%clk 0:00:08]} 57. Kh4 {[%clk 0:00:04]}  Qf6+ {[%clk 0:00:08]} 58. Kg4 {[%clk 0:00:05]}  Qg7+ {[%clk 0:00:09]} 59. Kh4 {[%clk 0:00:04]}  Bg5+ {[%clk 0:00:09]} 60. Kg4 {[%clk 0:00:02]}  Bh6+ {[%clk 0:00:07]} 61. Kh4 {[%clk 0:00:02]}  Qf6+ {[%clk 0:00:06]} 62. Kg4 {[%clk 0:00:03]}  Be3 {[%clk 0:00:06]} 63. Qh7 {[%clk 0:00:02]}  Qg5# {[%clk 0:00:04]} 0-1


[Site "https://www.chess.com"]

[Event "Titled Tuesday Blitz January 31 Early 2023"]
[White "Andreikin, Dmitry"]
[Black "Halkias, Stelios"]
[WhiteFideId "4158814"]
[BlackFideId "4201809"]
[WhiteElo "2729"]
[BlackElo "2511"]
[Result "1-0"]
[Round "05"]
[TimeControl "180+2"]
[Date "2023.01.31"]
[WhiteClock "0:00:15"]
[BlackClock "0:00:02"]

1. Nf3 {[%clk 0:03:00]}  d5 {[%clk 0:02:58]} 2. g3 {[%clk 0:03:00]}  Nf6 {[%clk 0:02:58]} 3. Bg2 {[%clk 0:03:00]}  e6 {[%clk 0:02:58]} 4. O-O {[%clk 0:03:00]}  Be7 {[%clk 0:02:58]} 5. d3 {[%clk 0:03:00]}  O-O {[%clk 0:02:58]} 6. a4 {[%clk 0:03:00]}  a5 {[%clk 0:02:50]} 7. Bf4 {[%clk 0:02:59]}  Nc6 {[%clk 0:02:38]} 8. Nc3 {[%clk 0:02:58]}  Nd7 {[%clk 0:02:37]} 9. e4 {[%clk 0:02:56]}  d4 {[%clk 0:02:35]} 10. Nb5 {[%clk 0:02:56]}  e5 {[%clk 0:02:34]} 11. Bd2 {[%clk 0:02:56]}  Nc5 {[%clk 0:02:28]} 12. Ne1 {[%clk 0:02:53]}  f5 {[%clk 0:02:24]} 13. exf5 {[%clk 0:02:48]}  Bxf5 {[%clk 0:02:24]} 14. Qb1 {[%clk 0:02:42]}  Qd7 {[%clk 0:02:22]} 15. Nf3 {[%clk 0:02:37]}  Bh3 {[%clk 0:02:12]} 16. Bxh3 {[%clk 0:02:22]}  Qxh3 {[%clk 0:02:11]} 17. Qd1 {[%clk 0:02:23]}  Bd6 {[%clk 0:01:39]} 18. Ng5 {[%clk 0:02:21]}  Qf5 {[%clk 0:01:35]} 19. Qe2 {[%clk 0:02:17]}  Nb4 {[%clk 0:01:31]} 20. Ne4 {[%clk 0:02:03]}  Nxe4 {[%clk 0:01:25]} 21. dxe4 {[%clk 0:02:04]}  Qg6 {[%clk 0:01:20]} 22. c3 {[%clk 0:01:57]}  d3 {[%clk 0:01:15]} 23. Qe3 {[%clk 0:01:48]}  Nc2 {[%clk 0:01:14]} 24. Qxd3 {[%clk 0:01:48]}  Nxa1 {[%clk 0:01:15]} 25. Rxa1 {[%clk 0:01:48]}  Kh8 {[%clk 0:01:14]} 26. Be3 {[%clk 0:01:48]}  Rf3 {[%clk 0:01:11]} 27. Nxd6 {[%clk 0:01:36]}  cxd6 {[%clk 0:01:11]} 28. Rd1 {[%clk 0:01:36]}  Rf6 {[%clk 0:01:11]} 29. Qd5 {[%clk 0:01:35]}  Raf8 {[%clk 0:01:09]} 30. Qxb7 {[%clk 0:01:33]}  h5 {[%clk 0:01:09]} 31. h4 {[%clk 0:01:21]}  Qg4 {[%clk 0:01:07]} 32. Rd2 {[%clk 0:01:17]}  Rf3 {[%clk 0:01:03]} 33. Kh2 {[%clk 0:01:05]}  Rxe3 {[%clk 0:00:33]} 34. fxe3 {[%clk 0:01:04]}  Rf1 {[%clk 0:00:33]} 35. Qb8+ {[%clk 0:00:48]}  Kh7 {[%clk 0:00:32]} 36. Qxd6 {[%clk 0:00:49]}  Qxe4 {[%clk 0:00:25]} 37. Rg2 {[%clk 0:00:47]}  Qb1 {[%clk 0:00:23]} 38. g4 {[%clk 0:00:38]}  Rh1+ {[%clk 0:00:21]} 39. Kg3 {[%clk 0:00:38]}  Qe1+ {[%clk 0:00:17]} 40. Kf3 {[%clk 0:00:38]}  Qf1+ {[%clk 0:00:17]} 41. Kg3 {[%clk 0:00:38]}  Qe1+ {[%clk 0:00:13]} 42. Kf3 {[%clk 0:00:38]}  Qf1+ {[%clk 0:00:12]} 43. Kg3 {[%clk 0:00:39]}  hxg4 {[%clk 0:00:10]} 44. Qd5 {[%clk 0:00:38]}  Qe1+ {[%clk 0:00:06]} 45. Kxg4 {[%clk 0:00:39]}  Qxh4+ {[%clk 0:00:06]} 46. Kf5 {[%clk 0:00:36]}  Qf6+ {[%clk 0:00:05]} 47. Ke4 {[%clk 0:00:35]}  Re1 {[%clk 0:00:02]} 48. Rh2+ {[%clk 0:00:28]}  Kg6 {[%clk 0:00:01]} 49. Rg2+ {[%clk 0:00:29]}  Kh7 {[%clk 0:00:01]} 50. Kd3 {[%clk 0:00:15]}  Qf1+ {[%clk 0:00:01]} 51. Kc2 {[%clk 0:00:15]}  Rc1+ {[%clk 0:00:01]} 52. Kb3 {[%clk 0:00:16]}  Rd1 {[%clk 0:00:01]} 53. Qe4+ {[%clk 0:00:16]}  Kh6 {[%clk 0:00:02]} 54. Qg6# {[%clk 0:00:15]} 1-0


[Site "https://www.chess.com"]

[Event "Titled Tuesday Blitz January 31 Early 2023"]
[White "Anton Guijarro, David"]
[Black "Ter-Sahakyan, Samvel"]
[WhiteFideId "2285525"]
[BlackFideId "13302531"]
[WhiteElo "2690"]
[BlackElo "2617"]
[Result "0-1"]
[Round "05"]
[TimeControl "180+2"]
[Date "2023.01.31"]
[WhiteClock "0:00:05"]
[BlackClock "0:00:04"]

1. d4 {[%clk 0:03:00]}  Nf6 {[%clk 0:02:59]} 2. Nf3 {[%clk 0:03:01]}  d5 {[%clk 0:02:58]} 3. e3 {[%clk 0:03:00]}  c5 {[%clk 0:02:57]} 4. Be2 {[%clk 0:02:59]}  Nc6 {[%clk 0:02:56]} 5. O-O {[%clk 0:02:59]}  Bg4 {[%clk 0:02:49]} 6. h3 {[%clk 0:02:58]}  Bh5 {[%clk 0:02:47]} 7. dxc5 {[%clk 0:02:57]}  e6 {[%clk 0:02:47]} 8. a3 {[%clk 0:02:56]}  a5 {[%clk 0:02:43]} 9. c4 {[%clk 0:02:53]}  Bxc5 {[%clk 0:02:43]} 10. cxd5 {[%clk 0:02:45]}  exd5 {[%clk 0:02:43]} 11. Qb3 {[%clk 0:02:23]}  O-O {[%clk 0:02:37]} 12. Rd1 {[%clk 0:02:03]}  Qd6 {[%clk 0:01:33]} 13. Nc3 {[%clk 0:01:59]}  Rfd8 {[%clk 0:01:25]} 14. Bd2 {[%clk 0:01:35]}  Qe7 {[%clk 0:01:03]} 15. Re1 {[%clk 0:00:46]}  Rd6 {[%clk 0:00:23]} 16. Rac1 {[%clk 0:00:38]}  Rdd8 {[%clk 0:00:13]} 17. Na4 {[%clk 0:00:31]}  Ba7 {[%clk 0:00:09]} 18. Bc3 {[%clk 0:00:28]}  Ne4 {[%clk 0:00:09]} 19. Nb6 {[%clk 0:00:24]}  Rab8 {[%clk 0:00:04]} 20. Bd4 {[%clk 0:00:16]}  Bxf3 {[%clk 0:00:04]} 21. Bxf3 {[%clk 0:00:15]}  Nd2 {[%clk 0:00:04]} 22. Qb5 {[%clk 0:00:12]}  Nxd4 {[%clk 0:00:03]} 23. exd4 {[%clk 0:00:12]}  Nxf3+ {[%clk 0:00:04]} 24. gxf3 {[%clk 0:00:12]}  Qg5+ {[%clk 0:00:04]} 25. Kf1 {[%clk 0:00:12]}  Qf5 {[%clk 0:00:04]} 26. Kg2 {[%clk 0:00:07]}  Qg6+ {[%clk 0:00:04]} 27. Kf1 {[%clk 0:00:07]}  Qxb6 {[%clk 0:00:04]} 28. Qe2 {[%clk 0:00:05]}  Qa6 {[%clk 0:00:04]} 0-1


[Site "https://www.chess.com"]

[Event "Titled Tuesday Blitz January 31 Early 2023"]
[White "Narayanan.S.L"]
[Black "Grigoriants, Sergey"]
[WhiteFideId "5058422"]
[BlackFideId "4130804"]
[WhiteElo "2660"]
[BlackElo "2562"]
[Result "1-0"]
[Round "05"]
[TimeControl "180+2"]
[Date "2023.01.31"]
[WhiteClock "0:00:24"]
[BlackClock "0:00:04"]

1. e4 {[%clk 0:02:59]}  e5 {[%clk 0:02:59]} 2. Nf3 {[%clk 0:02:59]}  Nc6 {[%clk 0:02:59]} 3. Bc4 {[%clk 0:02:58]}  Bc5 {[%clk 0:02:57]} 4. c3 {[%clk 0:02:56]}  Nf6 {[%clk 0:02:56]} 5. d3 {[%clk 0:02:57]}  d6 {[%clk 0:02:52]} 6. O-O {[%clk 0:02:56]}  O-O {[%clk 0:02:44]} 7. Re1 {[%clk 0:02:55]}  h6 {[%clk 0:02:39]} 8. Nbd2 {[%clk 0:02:48]}  a5 {[%clk 0:02:38]} 9. Nf1 {[%clk 0:02:45]}  Be6 {[%clk 0:02:20]} 10. Bb5 {[%clk 0:02:43]}  Ba7 {[%clk 0:02:13]} 11. Bxc6 {[%clk 0:02:37]}  bxc6 {[%clk 0:02:12]} 12. Ng3 {[%clk 0:02:38]}  Re8 {[%clk 0:02:08]} 13. h3 {[%clk 0:02:36]}  Qb8 {[%clk 0:01:59]} 14. Nh4 {[%clk 0:02:29]}  Kh7 {[%clk 0:01:55]} 15. Qf3 {[%clk 0:02:28]}  Ng8 {[%clk 0:01:37]} 16. Nhf5 {[%clk 0:02:11]}  g6 {[%clk 0:01:28]} 17. Ne3 {[%clk 0:02:11]}  Qd8 {[%clk 0:01:25]} 18. Rd1 {[%clk 0:01:33]}  Qf6 {[%clk 0:01:17]} 19. Qe2 {[%clk 0:01:33]}  h5 {[%clk 0:01:15]} 20. b3 {[%clk 0:01:31]}  d5 {[%clk 0:00:58]} 21. Bb2 {[%clk 0:01:28]}  Qg5 {[%clk 0:00:54]} 22. Qf3 {[%clk 0:01:19]}  Qf4 {[%clk 0:00:50]} 23. Qe2 {[%clk 0:00:51]}  a4 {[%clk 0:00:49]} 24. c4 {[%clk 0:00:46]}  Bxe3 {[%clk 0:00:31]} 25. Qxe3 {[%clk 0:00:46]}  Qxe3 {[%clk 0:00:26]} 26. fxe3 {[%clk 0:00:46]}  h4 {[%clk 0:00:22]} 27. exd5 {[%clk 0:00:45]}  cxd5 {[%clk 0:00:23]} 28. Ne2 {[%clk 0:00:45]}  f6 {[%clk 0:00:22]} 29. cxd5 {[%clk 0:00:36]}  Bxd5 {[%clk 0:00:21]} 30. Nc3 {[%clk 0:00:36]}  Bc6 {[%clk 0:00:18]} 31. bxa4 {[%clk 0:00:37]}  Bxa4 {[%clk 0:00:18]} 32. Rdc1 {[%clk 0:00:38]}  Bc6 {[%clk 0:00:16]} 33. Ne2 {[%clk 0:00:37]}  Ra6 {[%clk 0:00:16]} 34. a4 {[%clk 0:00:36]}  Rea8 {[%clk 0:00:14]} 35. a5 {[%clk 0:00:36]}  Ne7 {[%clk 0:00:14]} 36. Rc5 {[%clk 0:00:31]}  Kg7 {[%clk 0:00:12]} 37. d4 {[%clk 0:00:31]}  exd4 {[%clk 0:00:10]} 38. Nxd4 {[%clk 0:00:31]}  Kf7 {[%clk 0:00:09]} 39. Bc3 {[%clk 0:00:25]}  R8a7 {[%clk 0:00:05]} 40. Rc1 {[%clk 0:00:25]}  Be4 {[%clk 0:00:04]} 41. Be1 {[%clk 0:00:25]}  Nd5 {[%clk 0:00:04]} 42. Nb5 {[%clk 0:00:26]}  Rb7 {[%clk 0:00:04]} 43. Nxc7 {[%clk 0:00:26]}  Rxc7 {[%clk 0:00:02]} 44. Rxc7+ {[%clk 0:00:27]}  Nxc7 {[%clk 0:00:03]} 45. Rxc7+ {[%clk 0:00:28]}  Ke6 {[%clk 0:00:04]} 46. Bc3 {[%clk 0:00:27]}  g5 {[%clk 0:00:03]} 47. Rc4 {[%clk 0:00:27]}  Kf5 {[%clk 0:00:03]} 48. Kf2 {[%clk 0:00:27]}  Rc6 {[%clk 0:00:03]} 49. Rxc6 {[%clk 0:00:24]}  Bxc6 {[%clk 0:00:03]} 50. a6 {[%clk 0:00:25]}  Ke6 {[%clk 0:00:03]} 51. a7 {[%clk 0:00:25]}  f5 {[%clk 0:00:03]} 52. Ba5 {[%clk 0:00:24]}  Kf6 {[%clk 0:00:03]} 53. Bd8+ {[%clk 0:00:24]}  Kg6 {[%clk 0:00:04]} 54. Be7 {[%clk 0:00:24]}  Bb7 {[%clk 0:00:03]} 55. g3 {[%clk 0:00:22]}  hxg3+ {[%clk 0:00:04]} 56. Kxg3 {[%clk 0:00:23]}  Kh5 {[%clk 0:00:04]} 57. Bd8 {[%clk 0:00:22]}  Ba8 {[%clk 0:00:04]} 58. h4 {[%clk 0:00:22]}  gxh4+ {[%clk 0:00:04]} 59. Bxh4 {[%clk 0:00:22]}  Kg6 {[%clk 0:00:04]} 60. Kf4 {[%clk 0:00:22]}  Bb7 {[%clk 0:00:04]} 61. Ke5 {[%clk 0:00:23]}  Kf7 {[%clk 0:00:04]} 62. Kd6 {[%clk 0:00:23]}  Ba8 {[%clk 0:00:04]} 63. Kc7 {[%clk 0:00:24]}  Ke6 {[%clk 0:00:04]} 64. Bg5 {[%clk 0:00:24]} 1-0


[Site "https://www.chess.com"]

[Event "Titled Tuesday Blitz January 31 Early 2023"]
[White "Chigaev, Maksim"]
[Black "Urazayev, Arystanbek"]
[WhiteFideId "4108116"]
[BlackFideId "13709810"]
[WhiteElo "2628"]
[BlackElo "2460"]
[Result "1-0"]
[Round "05"]
[TimeControl "180+2"]
[Date "2023.01.31"]
[WhiteClock "0:00:46"]
[BlackClock "0:00:12"]

1. e4 {[%clk 0:03:00]}  e5 {[%clk 0:03:00]} 2. Bc4 {[%clk 0:03:00]}  Nf6 {[%clk 0:03:00]} 3. d3 {[%clk 0:03:00]}  Nc6 {[%clk 0:02:58]} 4. Nf3 {[%clk 0:03:00]}  Bc5 {[%clk 0:02:58]} 5. c3 {[%clk 0:03:00]}  d6 {[%clk 0:02:57]} 6. Bg5 {[%clk 0:03:00]}  a5 {[%clk 0:02:52]} 7. Nbd2 {[%clk 0:02:59]}  h6 {[%clk 0:02:52]} 8. Bh4 {[%clk 0:02:59]}  Ba7 {[%clk 0:02:52]} 9. Qe2 {[%clk 0:02:57]}  Qe7 {[%clk 0:02:53]} 10. O-O-O {[%clk 0:02:56]}  Be6 {[%clk 0:02:50]} 11. Kb1 {[%clk 0:02:55]}  Bxc4 {[%clk 0:02:39]} 12. Nxc4 {[%clk 0:02:54]}  g5 {[%clk 0:02:24]} 13. Bg3 {[%clk 0:02:54]}  b5 {[%clk 0:02:22]} 14. Ne3 {[%clk 0:02:53]}  Qd7 {[%clk 0:02:09]} 15. d4 {[%clk 0:02:42]}  Nxe4 {[%clk 0:01:49]} 16. dxe5 {[%clk 0:02:35]}  Bxe3 {[%clk 0:01:46]} 17. Qxe3 {[%clk 0:02:31]}  Qf5 {[%clk 0:01:38]} 18. exd6 {[%clk 0:02:08]}  O-O {[%clk 0:01:37]} 19. Ka1 {[%clk 0:02:09]}  cxd6 {[%clk 0:01:36]} 20. h4 {[%clk 0:02:04]}  Nxg3 {[%clk 0:01:21]} 21. fxg3 {[%clk 0:02:03]}  Rfe8 {[%clk 0:01:22]} 22. Qb6 {[%clk 0:01:58]}  Qc5 {[%clk 0:01:17]} 23. Qxc5 {[%clk 0:01:57]}  dxc5 {[%clk 0:01:18]} 24. hxg5 {[%clk 0:01:58]}  hxg5 {[%clk 0:01:19]} 25. Rd5 {[%clk 0:01:54]}  g4 {[%clk 0:00:53]} 26. Rg5+ {[%clk 0:01:54]}  Kf8 {[%clk 0:00:53]} 27. Rxg4 {[%clk 0:01:55]}  Ke7 {[%clk 0:00:30]} 28. Kb1 {[%clk 0:01:53]}  Rg8 {[%clk 0:00:28]} 29. Re1+ {[%clk 0:01:42]}  Kd6 {[%clk 0:00:27]} 30. Rf4 {[%clk 0:01:41]}  Rxg3 {[%clk 0:00:19]} 31. Rxf7 {[%clk 0:01:24]}  Rxg2 {[%clk 0:00:18]} 32. Rd1+ {[%clk 0:01:24]}  Ke6 {[%clk 0:00:18]} 33. Rc7 {[%clk 0:01:22]}  Ra6 {[%clk 0:00:17]} 34. Nd2 {[%clk 0:01:14]}  Ne5 {[%clk 0:00:12]} 35. Ne4 {[%clk 0:01:14]}  Rc6 {[%clk 0:00:12]} 36. Nxc5+ {[%clk 0:01:05]}  Kf5 {[%clk 0:00:12]} 37. Rxc6 {[%clk 0:00:46]} 1-0


[Site "https://www.chess.com"]

[Event "Titled Tuesday Blitz January 31 Early 2023"]
[White "Tactrics"]
[Black "Zierk, Steven"]
[BlackFideId "2034255"]
[WhiteElo "2800"]
[BlackElo "2488"]
[Result "1-0"]
[Round "05"]
[TimeControl "180+2"]
[Date "2023.01.31"]
[WhiteClock "0:00:20"]
[BlackClock "0:00:01"]

1. e4 {[%clk 0:03:00]}  e6 {[%clk 0:03:00]} 2. f4 {[%clk 0:03:00]}  d5 {[%clk 0:03:00]} 3. e5 {[%clk 0:03:01]}  c5 {[%clk 0:03:01]} 4. Nf3 {[%clk 0:03:02]}  Nc6 {[%clk 0:03:01]} 5. c3 {[%clk 0:03:02]}  d4 {[%clk 0:03:01]} 6. Na3 {[%clk 0:03:03]}  Nge7 {[%clk 0:03:00]} 7. Nc2 {[%clk 0:03:03]}  Nf5 {[%clk 0:02:52]} 8. Bd3 {[%clk 0:03:03]}  Be7 {[%clk 0:02:46]} 9. O-O {[%clk 0:02:58]}  dxc3 {[%clk 0:02:34]} 10. dxc3 {[%clk 0:02:57]}  Qc7 {[%clk 0:02:34]} 11. Qe2 {[%clk 0:02:52]}  b6 {[%clk 0:02:32]} 12. Ne3 {[%clk 0:02:41]}  Nxe3 {[%clk 0:02:31]} 13. Bxe3 {[%clk 0:02:41]}  Bb7 {[%clk 0:02:31]} 14. Rad1 {[%clk 0:02:41]}  O-O-O {[%clk 0:02:31]} 15. Ba6 {[%clk 0:02:29]}  Rxd1 {[%clk 0:02:15]} 16. Rxd1 {[%clk 0:02:29]}  Rd8 {[%clk 0:02:15]} 17. Bxb7+ {[%clk 0:02:26]}  Kxb7 {[%clk 0:02:15]} 18. Kf2 {[%clk 0:02:24]}  a6 {[%clk 0:02:13]} 19. c4 {[%clk 0:02:20]}  f5 {[%clk 0:02:07]} 20. b3 {[%clk 0:01:58]}  a5 {[%clk 0:01:59]} 21. Rd2 {[%clk 0:01:51]}  Rxd2 {[%clk 0:01:37]} 22. Qxd2 {[%clk 0:01:49]}  Qc8 {[%clk 0:01:37]} 23. a4 {[%clk 0:01:37]}  Qe8 {[%clk 0:01:33]} 24. h3 {[%clk 0:01:32]}  h6 {[%clk 0:01:30]} 25. g4 {[%clk 0:01:26]}  Kc7 {[%clk 0:01:28]} 26. Kg3 {[%clk 0:01:19]}  fxg4 {[%clk 0:01:23]} 27. hxg4 {[%clk 0:01:20]}  Qg6 {[%clk 0:01:23]} 28. Ne1 {[%clk 0:01:11]}  h5 {[%clk 0:01:18]} 29. g5 {[%clk 0:01:06]}  Qe4 {[%clk 0:01:11]} 30. Qd3 {[%clk 0:01:00]}  Qh1 {[%clk 0:00:43]} 31. Nf3 {[%clk 0:00:58]}  Bd8 {[%clk 0:00:38]} 32. Qd6+ {[%clk 0:00:43]}  Kb7 {[%clk 0:00:37]} 33. Qxe6 {[%clk 0:00:42]}  Qd1 {[%clk 0:00:35]} 34. Qf7+ {[%clk 0:00:40]}  Ne7 {[%clk 0:00:35]} 35. f5 {[%clk 0:00:34]}  Kb8 {[%clk 0:00:26]} 36. f6 {[%clk 0:00:34]}  Nf5+ {[%clk 0:00:25]} 37. Kf4 {[%clk 0:00:34]}  Qd3 {[%clk 0:00:21]} 38. Qd5 {[%clk 0:00:29]}  Qxd5 {[%clk 0:00:06]} 39. cxd5 {[%clk 0:00:29]}  g6 {[%clk 0:00:05]} 40. Bf2 {[%clk 0:00:22]}  Kc8 {[%clk 0:00:03]} 41. Nh4 {[%clk 0:00:22]}  Nxh4 {[%clk 0:00:01]} 42. Bxh4 {[%clk 0:00:23]}  Kd7 {[%clk 0:00:02]} 43. Ke4 {[%clk 0:00:20]}  Bc7 {[%clk 0:00:01]} 44. Bg3 {[%clk 0:00:21]}  Ke8 {[%clk 0:00:01]} 45. d6 {[%clk 0:00:20]} 1-0


[Site "https://www.chess.com"]

[Event "Titled Tuesday Blitz January 31 Early 2023"]
[White "Drygalov, Sergey"]
[Black "Biastoch, Bennet"]
[WhiteFideId "24171743"]
[BlackFideId "12939889"]
[WhiteElo "2547"]
[BlackElo "2257"]
[Result "1-0"]
[Round "05"]
[TimeControl "180+2"]
[Date "2023.01.31"]
[WhiteClock "0:00:45"]
[BlackClock "0:00:17"]

1. d4 {[%clk 0:02:57]}  d5 {[%clk 0:03:00]} 2. c4 {[%clk 0:02:57]}  e6 {[%clk 0:03:00]} 3. Nc3 {[%clk 0:02:57]}  Nf6 {[%clk 0:03:00]} 4. cxd5 {[%clk 0:02:56]}  exd5 {[%clk 0:02:59]} 5. Bg5 {[%clk 0:02:57]}  c6 {[%clk 0:02:59]} 6. e3 {[%clk 0:02:57]}  Be7 {[%clk 0:02:56]} 7. Bd3 {[%clk 0:02:57]}  O-O {[%clk 0:02:56]} 8. Qc2 {[%clk 0:02:57]}  h6 {[%clk 0:02:56]} 9. Bh4 {[%clk 0:02:56]}  Nbd7 {[%clk 0:02:56]} 10. Nf3 {[%clk 0:02:55]}  Re8 {[%clk 0:02:56]} 11. O-O {[%clk 0:02:53]}  Nf8 {[%clk 0:02:56]} 12. h3 {[%clk 0:02:49]}  Bd7 {[%clk 0:02:54]} 13. Ne5 {[%clk 0:02:47]}  Rc8 {[%clk 0:02:52]} 14. f4 {[%clk 0:02:46]}  c5 {[%clk 0:02:50]} 15. Qd2 {[%clk 0:02:32]}  cxd4 {[%clk 0:02:37]} 16. exd4 {[%clk 0:02:27]}  Bc6 {[%clk 0:02:15]} 17. Bxf6 {[%clk 0:02:22]}  Bxf6 {[%clk 0:02:13]} 18. Kh1 {[%clk 0:02:19]}  Ne6 {[%clk 0:01:56]} 19. Bf5 {[%clk 0:02:18]}  Rc7 {[%clk 0:01:45]} 20. Bc2 {[%clk 0:02:08]}  Rce7 {[%clk 0:01:37]} 21. Qd3 {[%clk 0:02:07]}  Nf8 {[%clk 0:01:26]} 22. Rae1 {[%clk 0:02:06]}  g6 {[%clk 0:01:17]} 23. Re3 {[%clk 0:01:57]}  Qd6 {[%clk 0:01:09]} 24. Rfe1 {[%clk 0:01:53]}  a6 {[%clk 0:01:04]} 25. a3 {[%clk 0:01:53]}  Bd7 {[%clk 0:01:00]} 26. Bb3 {[%clk 0:01:49]}  Bc6 {[%clk 0:00:57]} 27. Bc2 {[%clk 0:01:17]}  Bd7 {[%clk 0:00:57]} 28. Qd1 {[%clk 0:01:17]}  b5 {[%clk 0:00:51]} 29. Bb3 {[%clk 0:01:13]}  Be6 {[%clk 0:00:44]} 30. Qf3 {[%clk 0:01:12]}  b4 {[%clk 0:00:38]} 31. Nxd5 {[%clk 0:01:08]}  Bxd5 {[%clk 0:00:37]} 32. Bxd5 {[%clk 0:01:08]}  Kg7 {[%clk 0:00:23]} 33. Rd1 {[%clk 0:00:53]}  bxa3 {[%clk 0:00:22]} 34. bxa3 {[%clk 0:00:53]}  Rd8 {[%clk 0:00:21]} 35. Ba2 {[%clk 0:00:52]}  Bxe5 {[%clk 0:00:20]} 36. fxe5 {[%clk 0:00:52]}  Qd7 {[%clk 0:00:20]} 37. Qf6+ {[%clk 0:00:51]}  Kh7 {[%clk 0:00:19]} 38. d5 {[%clk 0:00:52]}  Kg8 {[%clk 0:00:17]} 39. Bb3 {[%clk 0:00:47]}  a5 {[%clk 0:00:16]} 40. e6 {[%clk 0:00:45]}  fxe6 {[%clk 0:00:16]} 41. dxe6 {[%clk 0:00:45]}  Qxd1+ {[%clk 0:00:16]} 42. Bxd1 {[%clk 0:00:45]}  Rxd1+ {[%clk 0:00:16]} 43. Kh2 {[%clk 0:00:45]}  Re8 {[%clk 0:00:16]} 44. e7 {[%clk 0:00:45]}  Nd7 {[%clk 0:00:17]} 45. Qxg6+ {[%clk 0:00:45]} 1-0


[Site "https://www.chess.com"]